bitfinex/quotes_BTCUSD_20250825
["timestamp","ask_amount","ask_price","bid_price","bid_amount"]
[1756152970810,14.15817654,110460.0,110450.0,1.68269129]
[1756152971031,14.00546333,110460.0,110450.0,1.68269129]
[1756152971238,13.68696134,110460.0,110450.0,1.68269129]
[1756152971451,13.30903055,110460.0,110450.0,1.77829129]
[1756152971673,13.16373408,110460.0,110450.0,1.68269129]
[1756152971923,13.00681319,110460.0,110450.0,1.68269129]
[1756152972155,13.00681319,110460.0,110450.0,2.08257129]
[1756152972379,12.49983244,110460.0,110450.0,2.88548202]
[1756152972601,12.32488564,110460.0,110450.0,2.08257129]
[1756152972827,12.02847459,110460.0,110450.0,2.08257129]
[1756152973041,11.45434024,110460.0,110450.0,2.98108202]
[1756152973244,11.24552378,110460.0,110450.0,2.98108202]
[1756152973457,11.13155963,110460.0,110450.0,1.98281129]
[1756152973669,11.00728926,110460.0,110450.0,2.17813129]
[1756152973876,10.88417148,110460.0,110450.0,2.17813129]
[1756152974086,10.49117966,110460.0,110450.0,1.88721129]
[1756152974335,10.49117966,110460.0,110450.0,0.71311216]
[1756152974569,10.49117966,110460.0,110450.0,0.90526216]
[1756152974797,10.49117966,110460.0,110450.0,1.21436129]
[1756152975252,10.49117966,110460.0,110450.0,1.21749129]
[1756152975486,10.07224538,110460.0,110450.0,1.55749129]
[1756152975736,10.07224538,110460.0,110450.0,1.68249129]
[1756152976192,9.6324629,110460.0,110450.0,1.48721129]
[1756152976426,9.6324629,110460.0,110450.0,1.68241129]
[1756152976897,9.6324629,110460.0,110450.0,1.38721129]
[1756152977134,9.6324629,110460.0,110450.0,0.90518216]
[1756152977368,9.6324629,110460.0,110450.0,0.62627741]
[1756152977591,9.6324629,110460.0,110450.0,0.47627741]
[1756152977863,9.6324629,110460.0,110450.0,1.12739654]
[1756152978306,9.6324629,110460.0,110450.0,1.21741129]
[1756152978546,9.21091913,110460.0,110450.0,1.55741129]
[1756152978780,8.97598119,110460.0,110450.0,1.68241129]
[1756152979006,8.52219016,110460.0,110450.0,1.68241129]
[1756152979232,8.52219016,110460.0,110450.0,1.77801129]
[1756152979233,7.9408965,110460.0,110450.0,1.77801129]
[1756152979472,7.31074624,110460.0,110450.0,2.58092202]
[1756152979707,6.99090147,110460.0,110450.0,2.58092202]
[1756152979922,6.77744194,110460.0,110450.0,2.58092202]
[1756152980136,6.11698057,110460.0,110450.0,2.58092202]
[1756152980352,5.99638915,110460.0,110450.0,2.58092202]
[1756152980559,5.89658949,110460.0,110450.0,2.58092202]
[1756152980784,5.40278969,110460.0,110450.0,2.58092202]
[1756152980993,5.07578312,110460.0,110450.0,2.58092202]
[1756152981198,4.88364563,110460.0,110450.0,2.58092202]
[1756152981415,4.56962988,110460.0,110450.0,2.48532202]
[1756152981641,4.45769623,110460.0,110450.0,2.48532202]
[1756152981842,3.97215079,110460.0,110450.0,2.88532202]
[1756152982062,3.78498748,110460.0,110450.0,2.88532202]
[1756152982269,3.5200343,110460.0,110450.0,2.88532202]
[1756152982474,3.39038681,110460.0,110450.0,2.88532202]
[1756152982677,3.208076,110460.0,110450.0,3.52800502]
[1756152982903,2.59053421,110460.0,110450.0,3.52800502]
[1756152983119,0.3390726,110460.0,110450.0,3.52800502]
[1756152983346,0.29825796,110460.0,110450.0,3.52631895]
[1756152983566,0.28766196,110460.0,110450.0,3.52631895]
[1756152983788,0.0004,110510.0,110500.0,0.91344449]
[1756152984002,0.0004,110510.0,110500.0,1.9201598]
[1756152984449,0.0004,110510.0,110500.0,0.97359724]
[1756152984659,0.00542,110510.0,110500.0,1.6487878]
[1756152984874,0.00542,110510.0,110500.0,0.79859724]
[1756152985081,0.00088096,110510.0,110500.0,1.7987478]
[1756152985295,0.00088096,110510.0,110500.0,1.8008278]
[1756152985539,0.00088096,110510.0,110500.0,1.7987478]
[1756152985998,0.00293096,110510.0,110500.0,1.14351724]
[1756152986210,0.00588096,110510.0,110500.0,1.7987078]
[1756152986634,0.00588096,110510.0,110500.0,0.88918347]
[1756152986869,0.00588096,110510.0,110500.0,0.88914347]
[1756152987623,0.00588096,110510.0,110500.0,0.90659249]
[1756152987851,0.00588096,110510.0,110500.0,0.71655249]
[1756152988332,0.00293096,110510.0,110500.0,1.37174305]
[1756152988579,0.00088096,110510.0,110500.0,1.8007078]
[1756152988807,1e-08,110510.0,110500.0,1.8445891]
[1756152989037,1e-08,110520.0,110510.0,0.57342811]
[1756152989276,0.00014417,110520.0,110510.0,1.31758342]
[1756152989503,0.00514417,110520.0,110510.0,0.58011286]
[1756152989744,0.66033473,110520.0,110510.0,0.1948]
[1756152989975,0.66033473,110520.0,110510.0,0.37573909]
[1756152990222,0.66033473,110520.0,110500.0,0.25063547]
[1756152990452,0.00295,110510.0,110500.0,0.25063547]
[1756152990679,0.005,110510.0,110500.0,0.44539547]
[1756152990914,0.005,110510.0,110500.0,0.2644]
[1756152990915,0.66019056,110510.0,110500.0,0.2644]
[1756152991171,0.005,110510.0,110500.0,0.44539547]
[1756152991897,0.65533473,110520.0,110500.0,0.44539547]
[1756152991898,0.00014417,110520.0,110510.0,0.18097909]
[1756152992132,0.00219417,110520.0,110510.0,0.33097909]
[1756152992376,0.00014417,110520.0,110510.0,0.44842811]
[1756152992619,0.00014417,110520.0,110510.0,1.53050342]
[1756152992871,0.00514417,110520.0,110510.0,0.83310811]
[1756152993149,0.00514417,110520.0,110510.0,0.18097909]
[1756152993348,0.00514417,110520.0,110510.0,0.33097909]
[1756152993581,0.00514417,110520.0,110510.0,0.56714163]
[1756152994038,0.00514417,110520.0,110510.0,0.41014163]
[1756152994286,0.00514417,110520.0,110510.0,0.21546163]
[1756152994529,0.66033473,110520.0,110510.0,0.37561909]
[1756152996262,0.66033473,110520.0,110510.0,0.19464]
[1756152996521,0.66033473,110520.0,110510.0,0.1946]
[1756152996787,0.00514417,110520.0,110510.0,0.37557909]
[1756152997060,0.66033473,110520.0,110510.0,0.52557909]
[1756152997325,0.00514417,110520.0,110510.0,0.52557909]
[1756152997577,0.65519056,110530.0,110510.0,0.52557909]
[1756152997858,3.87230456,110520.0,110500.0,0.18099525]
[1756152998120,0.65519056,110510.0,110500.0,0.37565941]
[1756152998366,0.65724056,110510.0,110500.0,0.19466416]
[1756152998593,0.65724056,110510.0,110500.0,0.00014416]
[1756152999439,0.65730056,110510.0,110500.0,0.00014416]
[1756153000121,0.00211,110510.0,110500.0,0.00014416]
[1756153000330,0.00205,110510.0,110500.0,0.2536428]
[1756153001580,0.65730056,110510.0,110500.0,0.00014416]
[1756153001780,0.00205,110510.0,110500.0,0.37557963]
[1756153001995,6e-05,110530.0,110510.0,0.18096504]
[1756153002218,0.65519056,110540.0,110530.0,0.18094634]
[1756153002434,0.00211,110540.0,110530.0,0.18094634]
[1756153002610,0.65730056,110540.0,110520.0,0.38441085]
[1756153003013,0.00211,110540.0,110530.0,0.18094634]
[1756153003271,0.00205,110540.0,110530.0,0.18094634]
[1756153003689,0.65525056,110560.0,110550.0,0.18091361]
[1756153003928,0.66554254,110560.0,110550.0,0.37527361]
[1756153004155,0.01029198,110560.0,110550.0,0.37527361]
[1756153004386,0.00826198,110560.0,110550.0,0.37527361]
[1756153004616,0.00826167,110560.0,110550.0,0.38431929]
[1756153004900,0.65519056,110570.0,110560.0,0.18089725]
[1756153005109,0.66546214,110570.0,110560.0,0.18089725]
[1756153005313,0.02442974,110570.0,110560.0,0.18089725]
[1756153005524,0.01415816,110570.0,110560.0,0.18089725]
[1756153005947,0.00054405,110580.0,110570.0,0.18088088]
[1756153006194,0.67188102,110580.0,110570.0,0.37516088]
[1756153006365,0.68014192,110580.0,110570.0,0.37516088]
[1756153006570,0.02296136,110580.0,110570.0,0.37516088]
[1756153007386,0.67815192,110580.0,110570.0,0.37516088]
[1756153007807,0.68020192,110580.0,110560.0,0.18089725]
[1756153008022,0.65519056,110570.0,110560.0,0.19424]
[1756153008234,0.66556146,110570.0,110560.0,0.19424]
[1756153008472,0.66556146,110570.0,110560.0,0.18089725]
[1756153008473,0.0102909,110570.0,110560.0,0.18089725]
[1756153008743,0.01470046,110580.0,110560.0,0.44756042]
[1756153008996,0.02296204,110580.0,110570.0,0.18088088]
[1756153009225,0.02296204,110580.0,110570.0,0.18407088]
[1756153009462,0.02296204,110580.0,110570.0,0.4215509]
[1756153009691,0.02296204,110580.0,110570.0,1.07674146]
[1756153009925,0.02296204,110580.0,110570.0,1.22674146]
[1756153009926,0.00880655,110580.0,110570.0,1.22674146]
[1756153010169,0.00054405,110580.0,110570.0,1.22674146]
[1756153010397,0.00054405,110580.0,110570.0,1.22774146]
[1756153011329,0.00054405,110580.0,110570.0,1.24519048]
[1756153011571,0.00054405,110580.0,110570.0,1.05103048]
[1756153011793,0.00054405,110580.0,110570.0,1.24511048]
[1756153012262,1e-08,110580.0,110570.0,1.77199523]
[1756153012495,3.215064,110630.0,110620.0,0.18079913]
[1756153012726,0.02932381,110630.0,110620.0,0.37479913]
[1756153013186,0.02727411,110630.0,110620.0,0.37479913]
[1756153013411,0.00825464,110630.0,110620.0,0.37479913]
[1756153013629,0.00825464,110630.0,110620.0,0.41533634]
[1756153013888,0.00825464,110630.0,110620.0,0.42060634]
[1756153014153,0.00825464,110630.0,110620.0,1.0757969]
[1756153014377,0.00825464,110630.0,110620.0,1.0757569]
[1756153014613,0.00825464,110630.0,110620.0,0.22660634]
[1756153014825,0.00825464,110630.0,110620.0,0.41529634]
[1756153015012,0.65607075,110640.0,110620.0,0.41525634]
[1756153015215,0.00088019,110640.0,110620.0,0.22133634]
[1756153015419,0.00088019,110640.0,110630.0,0.19388]
[1756153015663,0.00286019,110640.0,110630.0,0.19288]
[1756153015847,0.65805075,110640.0,110630.0,0.19384]
[1756153016082,0.66021075,110640.0,110630.0,0.19384]
[1756153016293,0.66121075,110640.0,110630.0,0.19384]
[1756153016759,0.66121075,110640.0,110620.0,0.009]
[1756153016760,0.00602019,110640.0,110620.0,0.009]
[1756153016995,0.50486019,110640.0,110630.0,0.2028]
[1756153017253,3.72103812,110640.0,110630.0,0.009]
[1756153017466,0.00597412,110640.0,110630.0,0.009]
[1756153017682,0.50597412,110640.0,110630.0,0.009]
[1756153017905,3.72103812,110640.0,110630.0,0.009]
[1756153018125,0.00597412,110640.0,110630.0,0.18978278]
[1756153018337,0.66116468,110640.0,110630.0,0.009]
[1756153018730,0.65900468,110640.0,110630.0,0.009]
[1756153018990,0.66100468,110640.0,110630.0,0.009]
[1756153020320,0.00581412,110640.0,110630.0,0.009]
[1756153020576,0.50581412,110640.0,110630.0,0.009]
[1756153020813,0.50581412,110640.0,110630.0,0.259]
[1756153020814,4.37606868,110640.0,110630.0,0.259]
[1756153021039,0.65900468,110640.0,110630.0,0.43978278]
[1756153021305,0.00381412,110640.0,110630.0,0.43978278]
[1756153021586,0.002,110640.0,110630.0,0.51433595]
[1756153021849,0.002,110640.0,110630.0,0.51733595]
[1756153022072,0.002,110640.0,110630.0,0.44483278]
[1756153022282,0.002,110640.0,110630.0,0.63334278]
[1756153022502,0.002,110640.0,110630.0,0.63330278]
[1756153022731,0.002,110640.0,110630.0,0.63835278]
[1756153023442,0.002,110640.0,110630.0,0.6558018]
[1756153023675,0.74186429,110680.0,110660.0,0.1807253]
[1756153023914,3.216884,110670.0,110660.0,0.3742053]
[1756153024160,0.01036638,110680.0,110670.0,0.18071744]
[1756153024161,0.00014402,110680.0,110670.0,0.18071744]
[1756153024648,0.00014402,110680.0,110670.0,0.18576744]
[1756153025118,0.00014402,110680.0,110670.0,1.34840702]
[1756153025357,0.00014402,110680.0,110670.0,1.3712671]
[1756153025591,0.00014402,110680.0,110670.0,1.34940702]
[1756153025820,0.00014402,110680.0,110670.0,0.88661646]
[1756153026042,0.00014402,110680.0,110670.0,1.63740702]
[1756153026515,0.00014402,110680.0,110670.0,1.72729177]
[1756153026753,0.00014402,110680.0,110670.0,1.72869177]
[1756153026999,0.00014402,110680.0,110670.0,1.73369177]
[1756153027664,0.00014402,110680.0,110670.0,1.73361177]
[1756153027887,0.00014402,110680.0,110670.0,0.69821646]
[1756153028139,0.00014402,110680.0,110670.0,1.35340702]
[1756153028355,0.00014402,110680.0,110670.0,1.54668702]
[1756153028794,0.00014402,110680.0,110670.0,0.54821646]
[1756153029017,0.00014402,110680.0,110670.0,0.89145646]
[1756153029732,0.00014402,110680.0,110670.0,0.69821646]
[1756153029959,0.00014402,110680.0,110670.0,0.89141646]
[1756153030874,0.00014402,110680.0,110670.0,0.69821646]
[1756153031104,0.00014402,110680.0,110670.0,0.38388744]
[1756153031558,0.00014402,110680.0,110670.0,0.40133646]
[1756153031798,0.00014402,110680.0,110670.0,1.05152702]
[1756153032045,0.00014402,110680.0,110670.0,1.28841177]
[1756153032267,0.00014402,110680.0,110670.0,1.29641177]
[1756153032268,0.00114402,110680.0,110670.0,1.29641177]
[1756153032491,0.00114402,110680.0,110670.0,1.29633177]
[1756153032736,0.00214402,110680.0,110670.0,0.37121646]
[1756153032987,0.00214402,110680.0,110670.0,0.41421646]
[1756153033223,0.00214402,110680.0,110670.0,0.56421646]
[1756153033469,0.00214402,110680.0,110670.0,0.19871744]
[1756153033740,0.00214402,110680.0,110670.0,0.39167744]
[1756153033924,0.00214402,110680.0,110670.0,0.40912646]
[1756153034306,0.00214402,110680.0,110670.0,0.41417646]
[1756153034710,0.00214402,110680.0,110670.0,0.22121646]
[1756153034920,0.00214402,110680.0,110670.0,0.41413646]
[1756153035582,0.00214402,110680.0,110670.0,0.21616646]
[1756153035744,0.00214402,110680.0,110670.0,0.45470491]
[1756153036781,0.00214402,110680.0,110670.0,0.26182491]
[1756153036971,0.00214402,110680.0,110670.0,0.44961491]
[1756153037186,0.00214402,110680.0,110670.0,0.44957491]
[1756153037607,0.00214402,110680.0,110670.0,0.45462491]
[1756153037824,0.00214402,110680.0,110670.0,0.93437715]
[1756153038052,0.00214402,110680.0,110670.0,0.45462491]
[1756153038268,0.00214402,110680.0,110670.0,0.93437715]
[1756153038696,0.00214402,110680.0,110670.0,1.0212619]
[1756153038922,0.00214402,110680.0,110670.0,0.69150966]
[1756153039135,0.00214402,110680.0,110670.0,1.1712619]
[1756153039587,0.00214402,110680.0,110670.0,0.69142966]
[1756153040006,0.00214402,110680.0,110670.0,1.1711419]
[1756153041004,0.00214402,110680.0,110670.0,1.3184619]
[1756153041228,0.00214402,110680.0,110670.0,1.5111019]
[1756153041425,0.00214402,110680.0,110670.0,1.27421715]
[1756153041631,0.00214402,110680.0,110670.0,0.45446491]
[1756153041806,0.00214402,110680.0,110670.0,0.45442491]
[1756153042016,0.00214402,110680.0,110670.0,0.93417715]
[1756153042810,0.82587626,110680.0,110670.0,0.018]
[1756153043225,0.83018121,110680.0,110670.0,0.018]
[1756153043439,0.00214402,110680.0,110670.0,0.19871744]
[1756153043839,0.00214402,110680.0,110670.0,0.19071744]
[1756153044037,0.00014402,110680.0,110670.0,0.18071744]
[1756153044268,0.48387626,110680.0,110670.0,0.19352]
[1756153044514,0.49216621,110680.0,110670.0,0.19348]
[1756153045271,0.49210296,110680.0,110670.0,0.19348]
[1756153045511,0.49210296,110680.0,110660.0,0.19244]
[1756153045771,0.49210296,110680.0,110650.0,0.2220702]
[1756153045772,0.47975224,110670.0,110650.0,0.04132014]
[1756153046011,0.48173224,110660.0,110650.0,0.23372014]
[1756153046219,0.48373224,110660.0,110630.0,0.25]
[1756153046448,0.48373224,110660.0,110630.0,0.4424]
[1756153046449,0.47975224,110640.0,110630.0,0.4424]
[1756153046665,0.49633128,110640.0,110630.0,0.62318278]
[1756153046868,0.49831128,110640.0,110630.0,0.62318278]
[1756153047324,0.51245849,110640.0,110630.0,0.62318278]
[1756153047524,0.51311992,110640.0,110630.0,0.4424]
[1756153047861,0.51311992,110640.0,110630.0,0.44246324]
[1756153048064,0.51311992,110640.0,110630.0,0.62324602]
[1756153048271,0.03072625,110640.0,110630.0,0.62324602]
[1756153048752,0.03072625,110640.0,110630.0,0.64571504]
[1756153048974,0.03072625,110640.0,110630.0,0.64671504]
[1756153049814,0.03072625,110640.0,110630.0,0.64571504]
[1756153050034,0.03072625,110640.0,110630.0,1.44995294]
[1756153050227,0.01657904,110640.0,110630.0,1.79395294]
[1756153050439,0.6562379,110700.0,110680.0,0.18069548]
[1756153050650,0.00198,110690.0,110680.0,0.37289548]
[1756153050902,0.01028247,110690.0,110680.0,0.37289548]
[1756153051331,0.01028247,110690.0,110660.0,0.18368252]
[1756153051544,0.6542379,110680.0,110670.0,0.37291724]
[1756153051762,0.6562179,110680.0,110670.0,0.37291724]
[1756153051966,0.66838039,110700.0,110680.0,0.18070112]
[1756153052199,0.02742686,110700.0,110690.0,0.37284479]
[1756153052441,0.00830187,110700.0,110690.0,0.37284479]
[1756153052653,0.00830187,110700.0,110690.0,0.3619778]
[1756153053816,0.66253977,110700.0,110670.0,0.30332878]
[1756153054035,0.6542379,110680.0,110670.0,0.0410725]
[1756153054255,0.6562279,110680.0,110670.0,0.2331525]
[1756153054463,0.66453034,110680.0,110670.0,0.19208]
[1756153054883,0.66453034,110680.0,110670.0,0.37279744]
[1756153055101,0.66453034,110680.0,110660.0,0.18075576]
[1756153055102,0.6562279,110680.0,110660.0,0.18075576]
[1756153055319,0.6542379,110670.0,110660.0,0.22187268]
[1756153055538,5.6562279,110670.0,110660.0,6.324e-05]
[1756153055747,0.6562279,110670.0,110660.0,0.18079701]
[1756153055974,0.6562279,110670.0,110660.0,6.324e-05]
[1756153056856,5.6562279,110670.0,110660.0,6.324e-05]
[1756153057849,5.6582079,110670.0,110660.0,6.324e-05]
[1756153058459,5.6602079,110670.0,110660.0,6.324e-05]
[1756153059436,6.75082248,110670.0,110660.0,6.324e-05]
[1756153060107,6.77825138,110670.0,110660.0,6.324e-05]
[1756153060320,6.7699488,110670.0,110660.0,6.324e-05]
[1756153060740,6.77824934,110670.0,110660.0,6.324e-05]
[1756153060975,7.11824934,110670.0,110660.0,6.324e-05]
[1756153061208,7.29896678,110670.0,110660.0,6.324e-05]
[1756153061415,7.29896585,110670.0,110660.0,6.324e-05]
[1756153061627,7.11824841,110670.0,110660.0,6.324e-05]
[1756153061834,7.49068585,110670.0,110660.0,6.324e-05]
[1756153062051,7.60813487,110670.0,110660.0,6.324e-05]
[1756153062265,7.41640206,110670.0,110660.0,6.324e-05]
[1756153062524,7.4568836,110670.0,110660.0,6.324e-05]
[1756153062732,7.46310454,110670.0,110660.0,6.324e-05]
[1756153063377,0.79093158,110660.0,110630.0,0.25]
[1756153063589,0.6542379,110640.0,110630.0,0.25]
[1756153063826,5.67280755,110640.0,110630.0,0.25]
[1756153064049,5.67480755,110640.0,110630.0,0.25]
[1756153064696,5.68895839,110640.0,110630.0,0.25]
[1756153064915,5.68895839,110640.0,110630.0,0.22785766]
[1756153065157,5.88051839,110640.0,110630.0,0.22785766]
[1756153065580,5.22728049,110640.0,110630.0,0.22785766]
[1756153065794,5.88151839,110640.0,110630.0,0.22785766]
[1756153066505,5.68795839,110640.0,110630.0,0.22785766]
[1756153066724,5.70823374,110640.0,110630.0,0.22785766]
[1756153067370,4.8707549,110640.0,110630.0,0.22785766]
[1756153067823,0.66938874,110640.0,110630.0,0.23287766]
[1756153068256,0.01415084,110640.0,110630.0,0.41366044]
[1756153068484,0.01415084,110640.0,110630.0,0.62254946]
[1756153068704,0.66838874,110640.0,110630.0,0.25132668]
[1756153068916,0.66838874,110640.0,110630.0,0.23084766]
[1756153069138,5.51571374,110640.0,110630.0,0.22785766]
[1756153069348,0.66838874,110640.0,110630.0,0.23587766]
[1756153069569,0.01415084,110640.0,110630.0,0.41366044]
[1756153069802,0.01415084,110640.0,110630.0,0.43110946]
[1756153070422,0.01415084,110640.0,110630.0,0.43410946]
[1756153070665,0.01415084,110640.0,110630.0,0.62542946]
[1756153071812,0.01415084,110640.0,110630.0,0.62242946]
[1756153072248,0.65438167,110670.0,110660.0,0.18073377]
[1756153072464,0.65438167,110670.0,110660.0,0.18276377]
[1756153072694,0.66852672,110670.0,110650.0,0.01744902]
[1756153072939,0.6542379,110660.0,110650.0,0.20118798]
[1756153073155,0.6542379,110660.0,110650.0,0.20022798]
[1756153073782,0.66952672,110670.0,110660.0,0.18073377]
[1756153073991,0.66952672,110670.0,110660.0,0.37396377]
[1756153074198,0.66952672,110670.0,110660.0,0.19622]
[1756153074613,0.66952672,110670.0,110660.0,0.00502]
[1756153074819,0.66852672,110670.0,110650.0,0.20860902]
[1756153075023,0.01428882,110670.0,110660.0,0.18575377]
[1756153075232,0.66852672,110670.0,110660.0,0.18575377]
[1756153075442,0.66852672,110670.0,110650.0,0.19819854]
[1756153075654,0.01428882,110670.0,110650.0,0.39249782]
[1756153075854,0.6542379,110660.0,110650.0,0.38927782]
[1756153076039,0.66852672,110670.0,110660.0,0.00203]
[1756153076496,0.66852672,110670.0,110660.0,0.00525]
[1756153076907,0.67052672,110670.0,110660.0,0.00525]
[1756153077123,0.01628882,110670.0,110660.0,0.18598377]
[1756153077346,0.01628882,110670.0,110660.0,0.20343279]
[1756153077766,0.49636463,110670.0,110660.0,0.39439279]
[1756153077971,0.01628882,110670.0,110660.0,0.39439279]
[1756153078203,0.01428882,110670.0,110660.0,0.39439279]
[1756153078408,0.01428882,110670.0,110660.0,0.43554228]
[1756153079628,0.01428882,110670.0,110660.0,0.43754228]
[1756153080259,0.01428882,110670.0,110660.0,0.24658228]
[1756153080463,0.01428882,110670.0,110660.0,0.50992545]
[1756153080882,0.00014377,110670.0,110660.0,0.99000126]
[1756153081508,0.00014377,110670.0,110660.0,0.98992126]
[1756153081726,0.00014377,110670.0,110660.0,1.56680601]
[1756153081937,0.00014377,110670.0,110660.0,1.56480601]
[1756153082157,0.98007581,110720.0,110710.0,0.19810117]
[1756153082158,0.48007581,110720.0,110710.0,0.19810117]
[1756153082366,0.02503354,110720.0,110710.0,0.39085117]
[1756153082589,0.50510935,110720.0,110710.0,0.02269902]
[1756153082797,0.48851624,110720.0,110710.0,0.39407117]
[1756153083022,0.48851624,110720.0,110710.0,0.4355683]
[1756153083429,0.48817399,110720.0,110710.0,0.39407117]
[1756153083642,0.48817399,110720.0,110710.0,0.20335117]
[1756153083853,0.66175905,110720.0,110710.0,0.39399117]
[1756153084500,0.00844043,110720.0,110710.0,0.39399117]
[1756153084707,0.01044043,110720.0,110710.0,0.39399117]
[1756153085579,0.01044043,110720.0,110710.0,0.39259117]
[1756153086204,0.00214388,110720.0,110710.0,0.39259117]
[1756153086703,0.00014388,110720.0,110710.0,0.39259117]
[1756153086926,0.00014388,110720.0,110710.0,0.20195117]
[1756153087179,0.00014388,110720.0,110710.0,0.43405444]
[1756153087636,0.00014388,110720.0,110710.0,0.43401444]
[1756153087853,0.00014388,110720.0,110710.0,0.24457444]
[1756153088082,0.00014388,110720.0,110710.0,0.43497444]
[1756153089267,0.00014388,110720.0,110710.0,0.24457444]
[1756153089494,0.00014388,110720.0,110710.0,0.43489444]
[1756153090903,0.00014388,110720.0,110710.0,1.08821306]
[1756153091128,0.00014388,110720.0,110710.0,0.43489444]
[1756153091356,0.00014388,110720.0,110710.0,0.70359444]
[1756153091573,0.00014388,110720.0,110710.0,0.70259444]
[1756153091843,0.00014388,110720.0,110710.0,0.51227444]
[1756153092072,0.00014388,110720.0,110710.0,0.70247444]
[1756153092292,0.00014388,110720.0,110710.0,0.71506331]
[1756153092511,0.00014388,110720.0,110710.0,0.71706331]
[1756153092767,0.00014388,110720.0,110710.0,0.51427444]
[1756153093006,0.00014388,110720.0,110710.0,0.70743444]
[1756153093248,0.00014388,110720.0,110710.0,0.51727444]
[1756153093492,0.00014388,110720.0,110710.0,0.70739444]
[1756153095069,0.00014388,110720.0,110710.0,0.70727444]
[1756153095957,0.00014388,110720.0,110710.0,0.51727444]
[1756153096176,0.00014388,110720.0,110710.0,0.70727444]
[1756153096629,0.00014388,110720.0,110710.0,0.80287444]
[1756153096853,0.00014388,110720.0,110710.0,0.51727444]
[1756153097041,0.00014388,110720.0,110710.0,0.70715444]
[1756153097750,0.00014388,110720.0,110710.0,0.43845444]
[1756153098675,0.00014388,110720.0,110710.0,0.24857444]
[1756153098888,0.00014388,110720.0,110710.0,0.43837444]
[1756153099330,0.00014388,110720.0,110710.0,0.43833444]
[1756153099545,0.00014388,110720.0,110710.0,1.27413781]
[1756153099775,0.01453569,110730.0,110720.0,0.19808485]
[1756153099987,0.01453569,110730.0,110720.0,0.85343347]
[1756153100195,0.0004,110730.0,110720.0,1.41915664]
[1756153100407,0.0004,110730.0,110720.0,1.60164139]
[1756153101252,0.0004,110730.0,110720.0,0.8778196]
[1756153101667,0.0004,110730.0,110720.0,0.8808196]
[1756153101930,0.0004,110730.0,110720.0,1.53413822]
[1756153102386,0.0004,110730.0,110720.0,0.54833485]
[1756153102627,0.0004,110730.0,110720.0,0.39785485]
[1756153103295,0.0004,110730.0,110720.0,0.39256485]
[1756153103516,0.0004,110730.0,110720.0,0.39781485]
[1756153104204,0.0004,110730.0,110720.0,0.20833485]
[1756153104425,0.00066,110730.0,110720.0,0.38752485]
[1756153104666,0.0004,110730.0,110720.0,0.39277485]
[1756153105123,0.0014,110730.0,110720.0,0.20333485]
[1756153105388,0.0004,110730.0,110720.0,0.87220633]
[1756153105813,0.0004,110730.0,110720.0,0.39273485]
[1756153106024,0.0004,110730.0,110720.0,0.20333485]
[1756153106245,0.0004,110730.0,110720.0,0.39269485]
[1756153106680,0.01413398,110740.0,110730.0,0.19806854]
[1756153106885,0.01413398,110740.0,110730.0,0.26754854]
[1756153107122,0.01413398,110740.0,110730.0,0.27274854]
[1756153107732,0.48386546,110740.0,110730.0,0.43933952]
[1756153107972,0.47947148,110740.0,110730.0,0.46198854]
[1756153108178,0.0004,110760.0,110750.0,0.01744902]
[1756153108404,0.50113942,110760.0,110750.0,0.20664902]
[1756153108622,5.83619522,110760.0,110750.0,0.20664902]
[1756153108852,5.33635522,110760.0,110740.0,0.1892]
[1756153109064,5.32679648,110750.0,110740.0,0.1892]
[1756153109276,5.3352158,110750.0,110740.0,0.1892]
[1756153109492,4.85600432,110750.0,110740.0,0.1892]
[1756153109706,5.3354758,110750.0,110740.0,0.1892]
[1756153109931,5.35199729,110750.0,110740.0,0.20664902]
[1756153110559,0.50451229,110750.0,110740.0,0.20652902]
[1756153110780,0.50467229,110750.0,110740.0,0.20652902]
[1756153111290,0.03465646,110750.0,110740.0,0.4331713]
[1756153111510,0.02052149,110750.0,110740.0,0.50567447]
[1756153111735,0.02052149,110750.0,110740.0,0.31659447]
[1756153111964,0.02052149,110750.0,110740.0,0.50559447]
[1756153112190,0.49625297,110750.0,110740.0,0.31139447]
[1756153112423,0.01678149,110750.0,110740.0,0.50035447]
[1756153112645,0.49625297,110750.0,110740.0,0.50035447]
[1756153112860,0.49599297,110750.0,110740.0,0.50245447]
[1756153113080,0.49599297,110750.0,110740.0,0.50555447]
[1756153113296,0.49625297,110750.0,110740.0,0.05828809]
[1756153113510,0.50468166,110750.0,110740.0,0.24716809]
[1756153113744,0.50452166,110750.0,110740.0,0.24716809]
[1756153113960,0.50452166,110750.0,110740.0,0.4277713]
[1756153113961,0.49599297,110750.0,110740.0,0.4277713]
[1756153114190,0.50468078,110750.0,110740.0,0.04083907]
[1756153114624,0.50452078,110750.0,110740.0,0.01744902]
[1756153114850,0.51965558,110750.0,110740.0,0.01744902]
[1756153115074,0.51865558,110750.0,110740.0,0.01744902]
[1756153115300,0.52165558,110750.0,110740.0,0.05889016]
[1756153115505,0.52165558,110750.0,110740.0,0.01744902]
[1756153115951,0.52181558,110750.0,110740.0,0.20620902]
[1756153116178,0.52181558,110750.0,110740.0,0.01744902]
[1756153116396,5.36914058,110750.0,110730.0,0.20620902]
[1756153116620,6.12623544,110740.0,110720.0,0.25]
[1756153116841,5.32705648,110730.0,110720.0,0.25]
[1756153117059,0.49625297,110730.0,110720.0,0.25]
[1756153117264,0.49641297,110730.0,110720.0,0.25]
[1756153117751,5.89486979,110730.0,110720.0,0.25]
[1756153117974,6.07548931,110730.0,110720.0,0.25]
[1756153118184,5.89686979,110730.0,110720.0,0.25]
[1756153118413,5.4173986,110730.0,110720.0,0.25]
[1756153118627,5.89687008,110730.0,110720.0,0.25]
[1756153119577,5.90108085,110730.0,110720.0,0.25]
[1756153119799,5.89487008,110730.0,110720.0,0.25]
[1756153120028,5.89675008,110730.0,110720.0,0.25]
[1756153120247,5.70819008,110730.0,110720.0,0.25]
[1756153120466,5.69975144,110730.0,110720.0,0.25]
[1756153120726,5.35975144,110730.0,110720.0,0.34750317]
[1756153120967,5.69975144,110730.0,110720.0,0.32250317]
[1756153121184,5.35975144,110730.0,110720.0,0.32250317]
[1756153121400,5.69991144,110730.0,110720.0,0.32250317]
[1756153121612,5.69975144,110730.0,110720.0,0.32250317]
[1756153122493,5.70803301,110730.0,110720.0,0.32250317]
[1756153122713,5.88819144,110730.0,110720.0,0.32250317]
[1756153122936,5.88835144,110730.0,110720.0,0.32250317]
[1756153123152,5.88819144,110730.0,110720.0,0.32250317]
[1756153123592,5.89647563,110730.0,110720.0,0.32250317]
[1756153123850,5.89647563,110730.0,110720.0,0.25]
[1756153124087,5.89663563,110730.0,110720.0,0.25]
[1756153124546,6.07725515,110730.0,110720.0,0.25]
[1756153124774,6.06611563,110730.0,110720.0,0.25]
[1756153125247,5.87767563,110730.0,110720.0,0.25]
[1756153125476,6.06599563,110730.0,110720.0,0.25]
[1756153125616,6.06399563,110730.0,110720.0,0.25]
[1756153126049,6.06799563,110730.0,110720.0,0.25]